Cogmind - Beta 11.1 *** ADVENTURER MODE // 2022.08.09 @ 01:37:34 Player: Bobby Tables Result: Destroyed by S-10 Pest with Light Assault Rifle Performance ------------- Evolutions (1) 500 Regions Visited (2) 400 Robots Destroyed (10) 50 Value Destroyed (117) 117 Prototype IDs (1) 20 Alien Tech Used (0) 0 Bonus (200) 200 TOTAL SCORE: 1287 Bonus ------- Pacifist 200 Cogmind --------- Core Integrity 0/400 Matter 288/300 Energy 250/250 System Corruption 0% Temperature Cool (30) Movement Core (250) Ox4 Location -9/Materials Parts ------- > --- POWER (3) -------- Ion Engine > --- PROPULSION (2) --- (None) > --- UTILITY (2) ------ Small Storage Unit Signal Interpreter > --- WEAPON (2) ------- Small Laser Assault Rifle > --- INVENTORY (8) ---- Flight Unit Faulty Improved Flight Unit Peak State ------------ > --- POWER ------------ Ion Engine Light Ion Engine Improved Ion Engine > --- PROPULSION ------- Hover Unit Improved Flight Unit > --- UTILITY ---------- Small Storage Unit Signal Interpreter > --- WEAPON ----------- EM Pulse Gun Assault Rifle > --- INVENTORY -------- Ion Engine Hover Unit Small Laser Assault Rifle Light Assault Rifle [Rating: 12] Favorites ----------- Power Ion Engine Engine Ion Engine Propulsion Hover Unit Treads Light Treads Wheel Wheel Hover Unit Hover Unit Flight Unit Improved Flight Unit Utility Small Storage Unit Device Sensor Array Storage Small Storage Unit Processor Signal Interpreter Weapon Assault Rifle Energy Gun EM Pulse Gun Ballistic Gun Assault Rifle Build | -11 -10 -9 ------- Run | Scr Mat Mat Slots Evolved 2 | . . 2 Power 2 | . . 2 Propulsion . | . . . Utility . | . . . Weapon . | . . . Parts Attached 24 | 6 7 11 Power 7 | 1 1 5 Engine 7 | 1 1 5 Core . | . . . Reactor . | . . . Propulsion 7 | 2 2 3 Treads 1 | 1 . . Leg . | . . . Wheel 1 | 1 . . Hover 4 | . 2 2 Flight 1 | . . 1 Utility 5 | 1 4 . Device 1 | . 1 . Storage 2 | 1 1 . Processor 2 | . 2 . Hackware . | . . . Protection . | . . . Artifact . | . . . Weapon 5 | 2 . 3 Energy Gun 2 | 1 . 1 Energy Cannon . | . . . Ballistic Gun 3 | 1 . 2 Ballistic Cannon . | . . . Launcher . | . . . Special Weapon . | . . . Impact Weapon . | . . . Slashing Weapon . | . . . Piercing Weapon . | . . . Special Melee Weapon . | . . . Unidentified Prototypes 1 | . . 1 Parts Lost 8 | . . 8 Power 3 | . . 3 Propulsion 2 | . . 2 Utility . | . . . Weapon 3 | . . 3 Highest Loss Streak 8 | . . 8 To Critical Strikes . | . . . Average Slot Usage (%) 85 | . 89 83 Engine 22 | . 14 26 Treads 2 | . 8 . Wheel 2 | . 8 . Hover 13 | . 10 15 Storage 11 | . 14 11 Processor 8 | . 4 11 Energy Gun 10 | . 14 8 Ballistic Gun 11 | . 14 10 Naked Turns . | . . . Heaviest Build 24 | 14 14 24 Greatest Support 20 | 20 12 12 Greatest Overweight (x) 7 | 2 1 7 Average Overweight (x) . | . . 1 Largest Inventory Capacity 8 | 8 8 8 Average Capacity 7 | 5 7 8 Most Carried 8 | 5 8 6 Average Carried 4 | 3 5 4 Final Capacity 8 | 8 8 8 Final Carried 6 | 4 6 2 Class Distribution -------------------- 52% | Scavenger-Mutant 47% | Mutant Dominant Class ---------------- Mutant | -10/Materials Scavenger-Mutant | -9/Materials Resources | -11 -10 -9 ----------- Run | Scr Mat Mat Matter Collected 463 | 119 214 130 Remotely . | . . . Salvage Created 192 | . . 192 Parts 25 | . . 25 Haulers Intercepted . | . . . Recyclers Shooed . | . . . Parts Field Recycled . | . . . Retrieved Matter . | . . . Parts Self-Destructed . | . . . Prevented . | . . . Kills | -11 -10 -9 ------- Run | Scr Mat Mat Combat Hostiles Destroyed 8 | . . 8 Guns 8 | . . 8 Classes Destroyed 3 | . . 3 Worker 2 | . . 2 Swarmer 7 | . . 7 Sentry 1 | . . 1 Best Kill Streak 7 | . . 7 Combat Bots Only 3 | . . 3 Max Kills in Single Turn 2 | . . 2 Gunslinging . | . . . Exploded . | . . . Melee . | . . . Uniques/NPCs Destroyed . | . . . Combat | -11 -10 -9 -------- Run | Scr Mat Mat Damage Taken 1159 | . . 1159 Core 400 | . . 400 Absorbed by Shields . | . . . Regen/Repaired (Parts) 19 | . . 19 Core Remaining (%) 100 | 100 100 . Volleys Fired 19 | 1 . 18 Largest 2 | 2 . 2 Hottest 60 | 60 . 60 Shots Fired 34 | 2 . 32 Gun 34 | 2 . 32 Cannon . | . . . Launcher . | . . . Special . | . . . Kinetic 24 | 1 . 23 Thermal 3 | . . 3 Explosive . | . . . Electromagnetic 7 | 1 . 6 Robot Hit Streak 11 | . . 11 Robot Miss Streak 2 | . . 2 Penetration Max . | . . . Secondary Targets 2 | . . 2 Max Gunslinging Chain 1 | . . 1 Shots Hit Robots 20 | . . 20 Core Hits 12 | 1 . 11 Critical Kills . | . . . Critical Parts Destroyed . | . . . Critical Strikes . | . . . Melee Attacks . | . . . Impact . | . . . Slashing . | . . . Piercing . | . . . Sneak Attacks . | . . . Combat Hostiles . | . . . Follow-up Attacks . | . . . Damage Inflicted 261 | 12 . 249 Guns 261 | 12 . 249 Cannons . | . . . Explosions . | . . . Melee . | . . . Ramming . | . . . Kinetic 204 | 12 . 192 Thermal . | . . . Explosive . | . . . Electromagnetic 57 | . . 57 Impact . | . . . Slashing . | . . . Piercing . | . . . Highest Corruption . | . . . Average Corruption . | . . . Corruption Purged . | . . . Corruption Blocked . | . . . Overload Shots . | . . . Overflow Damage . | . . . Projectiles . | . . . Explosions . | . . . Melee . | . . . Knockbacks . | . . . Impact . | . . . Kinetic . | . . . Secondary . | . . . Self-Inflicted Damage . | . . . Shots . | . . . Rammed 1 | . . 1 Targets Rammed 1 | . . 1 Kicked . | . . . Crushed . | . . . Highest Temperature 216 | . . 216 Average Temperature 99 | . . 99 Received Heat Transfer 387 | . . 387 Siege Activations . | . . . Robots Corrupted . | . . . Combat Hostiles . | . . . Parts Fried . | . . . Impact Corruptions . | . . . Robots Melted . | . . . Combat Hostiles . | . . . Parts Melted . | . . . Heat Transferred . | . . . Parts Sabotaged . | . . . Parts Stolen . | . . . Parts Stripped . | . . . Power Chain Reactions . | . . . Missiles Intercepted . | . . . Alert | -11 -10 -9 ------- Run | Scr Mat Mat Peak Influence 188 | . 10 188 Initial 3 | . . 3 Average 39 | . 9 60 Maximum Alert Level . | . . . Low Security (%) 100 | 100 100 100 Level 1 . | . . . Level 2 . | . . . Level 3 . | . . . Level 4 . | . . . Level 5 . | . . . High Security . | . . . Max Security . | . . . Squads Dispatched 3 | . 1 2 Investigation 1 | . 1 . Extermination . | . . . Reinforcement 2 | . . 2 Assault . | . . . Garrison . | . . . Intercept . | . . . Searches Triggered . | . . . Construction Impeded . | . . . Haulers Reinforced . | . . . Active Scanning Responses . | . . . Cargo Convoy Interrupts . | . . . Stealth | -11 -10 -9 --------- Run | Scr Mat Mat Distress Signals 2 | . . 2 Communications Jammed . | . . . Distress Signals . | . . . Times Spotted 23 | . . 23 Peak Tracking Total 14 | . . 14 Tactical Retreats 3 | . . 3 Traps | -11 -10 -9 ------- Run | Scr Mat Mat Traps Triggered . | . . . Indirectly . | . . . Trap Hack Attempts . | . . . Triggered . | . . . Disarmed . | . . . Reprogrammed . | . . . Reused . | . . . Traps Extracted . | . . . Installed . | . . . Triggered . | . . . Machines | -11 -10 -9 ---------- Run | Scr Mat Mat Machines Disabled . | . . . Max in Single Turn . | . . . Machines Sabotaged . | . . . Garrisons Compromised . | . . . Overloaded Fab Kills . | . . . Hacking | -11 -10 -9 --------- Run | Scr Mat Mat Machines Accessed 4 | . 1 3 Terminals 2 | . 1 1 Fabricators . | . . . Repair Stations 1 | . . 1 Recycling Units 1 | . . 1 Scanalyzers . | . . . Garrison Access . | . . . Total Hacks 7 | . 1 6 Successful 6 | . 1 5 Failed 1 | . . 1 Catastrophic . | . . . Database Lockouts . | . . . Manual . | . . . Terminals 2 | . 1 1 Fabricators . | . . . Repair Stations 3 | . . 3 Recycling Units 2 | . . 2 Scanalyzers . | . . . Garrison Access . | . . . Terminal Hacks 2 | . 1 1 Record 2 | . 1 1 Fabricator Hacks . | . . . Repair Station Hacks 2 | . . 2 Scan Component 1 | . . 1 Repair 1 | . . 1 Recycling Unit Hacks 2 | . . 2 Recycle Component 1 | . . 1 Process 1 | . . 1 Scanalyzer . | . . . Garrison Access Hacks . | . . . Unauthorized Hacks . | . . . Terminals . | . . . Fabricators . | . . . Repair Stations . | . . . Recycling Units . | . . . Scanalyzers . | . . . Garrison Access . | . . . Data Cores Recovered . | . . . Used . | . . . Hacking Detections 2 | . . 2 Full Trace Events 1 | . . 1 Feedback Events . | . . . Feedback Blocked . | . . . Robot Schematics Acquired . | . . . Robots Built . | . . . Authchips . | . . . Time . | . . . Total Robot Build Rating . | . . . Part Schematics Acquired . | . . . Parts Built . | . . . Authchips . | . . . Time . | . . . Total Part Build Rating . | . . . Parts Repaired 1 | . . 1 Time 26 | . . 26 Parts Recycled 1 | . . 1 Recycled Matter 8 | . . 8 Retrieved Matter . | . . . Retrieved Components . | . . . Parts Scanalyzed . | . . . Part Schematics Acquired . | . . . Parts Damaged . | . . . Bothacking | -11 -10 -9 ------------ Run | Scr Mat Mat Used RIF Installer . | . . . Robots Hacked . | . . . Non-combat . | . . . Combat . | . . . Robot Hacks Applied . | . . . Relay Couplers Released . | . . . Fabnet Peak Effective % . | . . . Robots Rewired . | . . . Allies Hacked . | . . . Hacks Repelled . | . . . Allies | -11 -10 -9 -------- Run | Scr Mat Mat Total Allies . | . . . Largest Group . | . . . Highest-Rated Group . | . . . Highest-Rated Ally . | . . . Total Orders . | . . . Ally Attacks . | . . . Total Damage . | . . . Kills . | . . . Allies Corrupted . | . . . Allies Melted . | . . . Intel | -11 -10 -9 ------- Run | Scr Mat Mat Robot Analysis Total . | . . . Derelict Logs Recovered . | . . . Drone Launches . | . . . Drone Recoveries . | . . . Exploration | -11 -10 -9 ------------- Run | Scr Mat Mat Turns Passed 731 | 86 206 439 Spaces Moved 577 | 74 208 295 Core 82 | 36 . 46 Treads 9 | 9 . . Legs . | . . . Wheels 162 | 29 133 . Hover 324 | . 75 249 Flight . | . . . Fastest Speed 50 | 50 56 56 Average Speed 108 | 94 89 125 Slowest Speed 400 | 160 116 400 Overloaded Moves . | . . . Propulsion Burnouts . | . . . Robots Hopped . | . . . Cave-ins Triggered . | . . . Exploration Rate (%) 20 | 4 35 22 Regions Visited 2 Branch Regions . Pre-discovered Areas . | . . . Known Exits Taken 1 | . 1 . Unknown Exits Taken 1 | 1 . . Scrap Searched . | . . . Spaces Dug . | . . . Terrain Destroyed . | . . . Melee . | . . . Projectile . | . . . AOE . | . . . Terrain Rammed . | . . . Walls Destroyed . | . . . Machines Disabled . | . . . Actions | -11 -10 -9 --------- Run | Scr Mat Mat Total 642 | 86 227 329 Wait . | . . . Move 575 | 73 207 295 Hop . | . . . Pick Up 19 | 6 9 4 Fast Attach 4 | 4 . . Attach 12 | 2 3 7 Detach . | . . . Swap 8 | . 4 4 Drop 4 | . 4 . Fire 19 | 1 . 18 Melee . | . . . Ram 1 | . . 1 Kick . | . . . Crush . | . . . Escape Stasis . | . . . Rewire . | . . . Trap . | . . . Miscellaneous . | . . . Route ------- -11/Scrapyard -10/Materials -9/Materials History --------- Turn | Location | Event 9 | -11/Scrapyard | Discovered new exit (range 16) 87 | -11/Scrapyard | Entered Materials 258 | -10/Materials | Discovered new exit (range 13) 287 | -10/Materials | Identified exit to Materials 293 | -10/Materials | Entered another Materials area 293 | -9/Materials | Evolved 2 slots: Power x2 488 | -9/Materials | Repaired Hover Unit? 577 | -9/Materials | Build established: Scavenger-Mutant 675 | -9/Materials | Core integrity fell below 50% 695 | -9/Materials | Lost 8 parts (3p2n3w) 727 | -9/Materials | Core integrity fell below 20% 732 | -9/Materials | Destroyed by S-10 Pest with Light Assault Rifle Last Messages --------------- Imp. Ion Engine destroyed. Assault Rifle destroyed. Lgt. Assault Rifle destroyed. Critical hit (Burn: +37). O-16 Technician: "IFF HANDSHAKE FAILED. SECURING TERMINAL." O-16 Technician uses terminal to summon reinforcements. ALERT: Hostiles spotted, dispatching reinforcements to Terminal M005. O-16 Technician locks terminal. K-01 Serf cleans the Terminal. S-10 Pest destroyed. Acquired 15 matter. W-16 Scout distress signal alerts nearby ally. Acquired Flight Unit. S-10 Pest destroyed. Acquired 14 matter. Acquired 5 matter. K-01 Serf collects debris. Slammed into G-34 Mercenary. Destabilizing: System interference. Signal Interpreter temporarily disabled. Map ----- +----------------------------------------------------+ | ???????# "" #??????????????????????????????????? | | ???????# """ #??????????????????????????????????? | | ???????# "" #??????????????????????????????????? | | ######## "" #??????????????????????????????????? | | ## "=* #??????????????????????????????????? | | """"" ## %%!#??????????????????????????????????? | | """"" #######/##############?????????????????????? | | """"" # ????????????????????? | | + ????????????????????? | | """"" # ????????????????????? | | """"" # """" #####+#######?????????????????????? | | """"" # """" #?# #?????????????????????? | | # """" #?#"" #?????????????????????? | | #+##### ###"T #?????????????????????? | | #"" """ #?????????????????????? | | / """ #?????????????????????? | | # """ #?????????????????????? | | #####+######### #?????????????????????? | | #?????????????# #?????????????????????? | | #?????????????#########/#?????????????????????? | | #??????????????######## #?????????????????????? | | #??????????????#= # #?????????????????????? | | #??????????????# """=# #?????????????????????? | | #??????????????# """[# #???##????????????????? | | #??????????????# """g#Y## ####?????????????? | | #??????????????# """g@sg Y k ??????? | | #???#+#????????# wk#g## ####?????????????? | | #???# #????????######## #??###????????????????? | | ####???# ??????????????? #?????????????????????? | | ???????# #??????????###### #?????????????????????? | | ???????# #??????????#]] ## #?????????????????????? | | ?????### ###????????#]] ## ##????????????????????? | | ####?# #????????#!! #????????????????????? | | ###] #????????#!! #????????????????????? | | % +????????#!! #????????????????????? | | ### #????????#!! ## ##????????????????????? | | ##?# #????????###### #?????????????????????? | | ######+#####??????????## ########??????????????? | | [## ############ # #??????????????? | | ## + T + #??????????????? | | ## """"" ############ # #??????????????? | | / """"" #??????????##### #??????????????? | | #### """"" #??????????????# #??????????????? | | ???# #??????????????# #??????????????? | | ???# "Y" #??????????????# #??????????????? | | ???# """ #??????????????#######??????????????? | | ???###########???????????????????????????????????? | | | | | | | +----------------------------------------------------+ Best States ------------- Heat Dissipation 28 Energy Generation 22 Energy Capacity 565 Matter Stores 300 Matter Capacity 300 Sight Range 18 Terrain Scan Density 10 Resistance: KI 20 Resistance: TH 20 Resistance: EX 20 Resistance: EM 20 Resistance: I 20 Resistance: S 20 Resistance: P 20 Evasion (%) 53 Recoil Reduction 1 Offensive Hacking 10 Item Schematics ----------------- None Robot Schematics ------------------ None Fabricated ------------ Nothing Alien Tech Used ----------------- None Achievements -------------- Part-time Mechanic Challenges ------------ None Game ------ Seed ResetAssaultShielding Manual? 0 Play Time 00:21:37 Cumulative 2.9 hours Start 2022.08.08 @ 04:18:47 End 2022.08.09 @ 01:37:34 Sessions 3 Manual Loads 0 Difficulty Adventurer Special Mode None Game No. 8 Rogue 2 Adventurer 6 Explorer 0 Win Type - Total 0 Types 0/0/0/0/0/0/0/0/0 Lore% 4 Gallery% 5 Achievement% 5 Wizard Run 0 Options --------- ASCII 0 Keyboard 0 Movement Mouse Keybinds 0 Fullscreen 2 Font 24/Proggy Map View 113x50 Tactical HUD 0 Map Filters NONE Filters NONE Steam 1 RUN: 5de6ae59-f53b-45de-bd84-f52ec7f9df70